bitfinex/quotes_ETHUSD_20260114
["timestamp","ask_amount","ask_price","bid_price","bid_amount"]
[1768382863219,1.94426261,3330.9,3329.8,3.00310836]
[1768382863388,1.94426261,3330.7,3329.7,1.90781672]
[1768382863585,1.94426261,3330.5,3329.5,4.91123224]
[1768382863792,1.94426261,3330.3,3329.5,2.32081672]
[1768382864000,1.94426261,3330.3,3329.5,0.413]
[1768382864207,1.94426261,3330.2,3329.5,0.413]
[1768382864411,1.94426261,3330.2,3329.5,3.41642738]
[1768382865004,1.94426261,3330.2,3329.4,1.90781672]
[1768382865219,2.35726261,3330.2,3329.2,4.91150918]
[1768382865622,2.35726261,3330.2,3329.2,1.90781672]
[1768382865836,4.94735579,3329.9,3329.1,3.0037783]
[1768382866625,1.94426261,3329.8,3329.1,3.0037783]
[1768382868419,4.94747394,3329.8,3329.1,3.0037783]
[1768382869930,1.94426261,3329.7,3329.1,3.0037783]
[1768382871296,1.94426261,3329.7,3329.1,6.00759314]
[1768382871503,0.413,3330.2,3329.3,1.90781672]
[1768382871803,5.36012006,3330.2,3329.4,1.93785216]
[1768382872002,3.41585745,3330.2,3329.4,1.93785216]
[1768382873208,0.413,3330.2,3329.6,1.90781672]
[1768382873413,0.413,3330.2,3329.6,1.93785035]
[1768382873609,3.00271138,3330.4,3329.7,1.90781672]
[1768382873913,3.0025706,3330.5,3329.7,1.90781672]
[1768382875118,6.0051412,3330.5,3329.7,1.90781672]
[1768382876130,5.35972462,3330.6,3329.7,4.91107558]
[1768382877134,8.36220036,3330.6,3329.7,1.90781672]
[1768382877337,1.94426261,3330.5,3329.7,1.90781672]
[1768382877836,1.94426261,3330.5,3329.7,1.90881672]
[1768382878338,1.94426261,3330.3,3329.6,0.79448455]
[1768382878548,1.94426261,3330.0,3328.7,1.90781672]
[1768382878713,1.94426261,3330.0,3328.9,4.9117406]
[1768382878912,1.94426261,3330.0,3329.0,3.00389728]
[1768382879128,1.94426261,3329.8,3328.9,4.91179015]
[1768382879330,1.94426261,3329.8,3329.0,1.90781672]
[1768382879530,0.20360689,3329.9,3329.2,3.00370757]
[1768382879722,0.20360689,3329.9,3329.2,4.91152429]
[1768382880331,0.20360689,3329.9,3329.4,1.90781672]
[1768382880510,3.00291282,3330.1,3329.4,1.90781672]
[1768382881447,0.413,3330.2,3329.5,1.90781672]
[1768382881919,3.00237187,3330.7,3329.7,1.90781672]
[1768382882120,0.413,3330.6,3329.7,1.90781672]
[1768382882326,0.413,3330.6,3329.8,1.93784855]
[1768382882526,3.41552543,3330.6,3329.9,3.00309318]
[1768382882725,4.25173658,3330.6,3329.9,3.00309318]
[1768382883044,4.25173658,3330.6,3329.9,4.9109099]
[1768382883543,1.24921115,3330.6,3329.9,4.9109099]
[1768382884045,0.413,3330.6,3329.9,7.91400308]
[1768382884247,3.41546275,3330.6,3329.9,4.9109099]
[1768382884427,0.413,3330.6,3329.9,4.9109099]
[1768382884625,5.35974516,3330.6,3329.8,3.00314353]
[1768382884825,9.19844584,3330.6,3329.7,4.91102166]
[1768382885051,9.19844584,3330.6,3329.8,3.00316373]
[1768382885551,1.74943645,3330.5,3329.7,4.91103083]
[1768382886457,7.75472109,3330.4,3329.7,1.90781672]
[1768382886752,7.75472109,3330.4,3329.6,3.41632442]
[1768382886921,4.75207877,3330.4,3329.6,3.41632442]
[1768382887122,4.75207877,3330.4,3329.7,3.00326657]
[1768382887317,4.75207877,3330.4,3329.6,4.24540253]
[1768382887536,7.75472109,3330.4,3329.6,4.24540253]
[1768382887715,7.75472109,3330.4,3329.6,3.83240253]
[1768382887716,4.75207877,3330.4,3329.6,3.83240253]
[1768382887921,4.75207877,3330.4,3329.6,4.24540253]
[1768382888431,1.74943645,3330.3,3329.7,3.00325439]
[1768382888637,1.74943645,3330.2,3329.6,4.24541121]
[1768382889927,1.74943645,3330.0,3328.8,1.87091429]
[1768382890128,0.50480629,3330.1,3328.9,4.87484687]
[1768382890129,0.09180629,3329.7,3328.9,4.87484687]
[1768382890362,1.84124274,3329.7,3328.9,4.87484687]
[1768382890730,3.00336376,3329.6,3328.9,4.87484687]
[1768382891053,5.5375916,3329.6,3328.9,3.00393258]
[1768382891258,2.53422784,3329.6,3328.9,4.87484687]
[1768382892453,0.78479139,3329.6,3328.9,4.87484687]
[1768382893059,3.00345397,3329.5,3328.9,4.87484687]
[1768382893255,0.78479139,3329.6,3328.9,4.87484687]
[1768382893256,3.78819303,3329.6,3328.9,4.87484687]
[1768382894464,1.74943645,3329.5,3328.9,3.00393258]
[1768382894651,1.74943645,3329.5,3328.8,0.413]
[1768382895359,4.75291878,3329.5,3328.9,3.00397019]
[1768382896362,3.00348233,3329.5,3328.9,3.00397019]
[1768382896761,3.78819387,3329.6,3328.9,4.87488448]
[1768382896941,3.78819387,3329.6,3328.9,1.87091429]
[1768382897668,0.85409151,3329.5,3328.9,1.87091429]
[1768382898138,3.00328699,3329.7,3328.9,1.87091429]
[1768382898767,1.74175394,3329.8,3329.0,3.00390507]
[1768382900453,1.74175394,3329.8,3328.9,4.71660415]
[1768382900863,3.00327356,3329.7,3329.0,4.71651276]
[1768382901566,1.74175394,3329.6,3329.0,3.00386749]
[1768382901776,1.74175394,3329.4,3328.8,0.413]
[1768382902856,1.74175394,3329.2,3328.6,3.00426605]
[1768382903064,1.74175394,3329.2,3328.7,0.413]
[1768382905275,1.74175394,3329.2,3328.7,3.4170997]
[1768382907478,4.74529812,3329.4,3328.7,3.4170997]
[1768382907986,1.74175394,3329.3,3327.7,1.71264527]
[1768382908188,1.74175394,3329.3,3328.2,1.71264527]
[1768382908348,1.74175394,3329.3,3328.3,2.12564527]
[1768382908551,1.74175394,3329.3,3328.4,4.71706769]
[1768382908750,1.74175394,3329.2,3328.4,1.71264527]
[1768382909001,1.74175394,3329.2,3328.2,1.71264527]
[1768382909294,1.20491551,3329.3,3328.2,1.71264527]
[1768382909295,1.74175394,3329.0,3328.3,0.413]
[1768382909878,1.74175394,3329.0,3328.1,4.71736249]
[1768382910194,1.74175394,3329.0,3328.2,1.71264527]
[1768382910408,2.5166923,3329.0,3328.2,1.71264527]
[1768382911989,3.00399531,3328.9,3328.2,1.71264527]
[1768382912865,6.00799062,3328.9,3328.2,1.71264527]
[1768382915396,6.00799062,3328.9,3328.5,0.001]
[1768382916299,3.00399531,3328.9,3328.5,0.001]
[1768382916502,3.00399531,3328.9,3328.5,1.80236754]
[1768382917893,6.00799062,3328.9,3328.5,1.80236754]
[1768382918098,3.00399531,3328.9,3328.5,1.80236754]
[1768382921572,3.00399531,3328.9,3328.5,0.001]
[1768382922522,6.00762968,3329.1,3328.5,1.80236754]
[1768382922833,0.60076297,3329.0,3328.5,1.80236754]
[1768382924526,3.00399531,3328.9,3328.5,1.80236754]
[1768382927311,3.00399531,3328.9,3328.8,0.001]
[1768382930888,0.413,3329.3,3328.8,1.80236754]
[1768382931088,3.4166455,3329.3,3328.9,2.63134829]
[1768382931292,3.4166455,3329.3,3328.9,1.80136754]
[1768382934719,3.4166455,3329.3,3328.8,0.001]
[1768382937723,6.420291,3329.3,3328.8,0.001]
[1768382938284,5.16845567,3329.3,3328.8,0.001]
[1768382938817,0.002,3329.0,3328.8,0.001]
[1768382942434,1.75381017,3329.0,3328.8,0.001]
[1768382942741,0.17538102,3328.9,3328.8,0.001]
[1768382943433,6.18337164,3328.9,3328.5,0.001]
[1768382943637,7.75980079,3328.9,3328.5,0.001]
[1768382945615,6.00799062,3328.9,3328.5,0.001]
[1768382945915,3.00399531,3328.9,3328.5,0.001]
[1768382949839,6.00989731,3329.0,3328.5,0.001]
[1768382950037,0.25847129,3328.9,3328.5,0.001]
[1768382950338,6.00989731,3329.0,3328.5,0.001]
[1768382950538,0.25846885,3328.9,3328.5,0.001]
[1768382950845,6.00989731,3329.0,3328.5,0.001]
[1768382951004,3.00408555,3328.8,3328.5,0.001]
[1768382952234,4.69227485,3328.8,3328.5,0.001]
[1768382952410,5.46210222,3328.8,3328.5,0.001]
[1768382953036,3.77391292,3328.8,3328.5,0.001]
[1768382954845,3.00408555,3328.8,3328.5,0.001]
[1768382955147,3.00399531,3328.9,3328.5,0.001]
[1768382956027,3.00399531,3328.9,3328.5,1.78107802]
[1768382956746,3.00399531,3328.9,3328.5,0.001]
[1768382959941,3.00399531,3328.9,3328.5,1.75739534]
[1768382960917,3.00399531,3328.9,3328.6,1.786438]
[1768382961120,3.00594254,3329.0,3328.6,1.786438]
[1768382961444,0.002,3329.0,3328.6,1.786438]
[1768382961746,0.002,3329.0,3328.6,1.75639534]
[1768382962323,0.415,3329.3,3328.7,1.96217662]
[1768382962324,3.00567725,3329.3,3328.7,1.96217662]
[1768382962531,3.00567725,3329.3,3328.7,1.93213487]
[1768382963551,0.002,3329.3,3328.8,3.00408555]
[1768382963917,0.002,3329.3,3328.8,3.00508555]
[1768382964155,0.002,3329.0,3328.8,3.00508555]
[1768382964380,0.002,3329.0,3328.8,3.84053302]
[1768382967680,0.002,3329.3,3328.8,3.84053302]
[1768382970119,0.002,3329.3,3328.9,0.03003995]
[1768382970528,0.002,3329.3,3328.9,1.78643529]
[1768382971432,0.002,3329.3,3328.9,1.75639534]
[1768382973864,0.002,3329.3,3328.9,4.76035616]
[1768382974363,0.002,3329.3,3328.9,1.75639534]
[1768382974552,0.002,3329.3,3328.8,3.84049507]
[1768382975674,0.002,3329.3,3329.0,0.001]
[1768382978474,0.413,3329.8,3329.1,1.70513939]
[1768382979286,6.44205105,3329.9,3329.2,2.11813939]
[1768382979952,1.79934465,3330.0,3329.2,2.11813939]
[1768382980588,4.80238504,3330.0,3329.3,3.00363439]
[1768382988086,0.002,3329.7,3329.3,3.00363439]
[1768382988291,0.002,3329.7,3329.3,3.81619162]
[1768382992862,0.002,3330.0,3329.3,5.52133101]
[1768382993061,3.00500573,3330.0,3329.3,5.52133101]
[1768382996570,1.80134465,3330.0,3329.3,5.52133101]
[1768382997121,0.002,3330.0,3329.4,1.73517483]
[1768382997420,0.002,3330.0,3329.5,2.56063947]
[1768382998520,0.002,3330.0,3329.5,0.85550008]
[1768383000013,0.002,3330.0,3329.6,3.00336376]
[1768383000511,0.002,3330.1,3329.7,1.70513939]
[1768383001014,0.002,3329.7,3329.6,3.41736376]
[1768383001221,0.002,3330.1,3329.6,4.31550261]
[1768383001583,0.002,3330.1,3329.6,7.31886637]
[1768383001934,0.002,3330.1,3329.6,4.31550261]
[1768383002772,0.002,3330.1,3329.6,1.31213885]
[1768383003222,0.002,3330.1,3329.6,4.31549353]
[1768383003419,0.002,3330.1,3329.6,3.90249353]
[1768383003604,0.002,3330.1,3329.6,1.31213885]
[1768383004180,0.002,3330.1,3329.6,4.31550173]
[1768383004795,1.80134465,3330.1,3329.6,3.90250173]
[1768383004995,1.80134465,3330.1,3329.6,0.001]
[1768383005515,1.80134465,3330.1,3329.6,3.00434913]
[1768383010614,1.80134465,3330.1,3329.6,6.00771289]
[1768383010823,1.80134465,3330.1,3329.6,3.00434913]
[1768383011212,1.80134465,3330.1,3329.6,6.00771289]
[1768383011725,1.80134465,3330.1,3329.6,3.00434913]
[1768383012524,0.002,3329.8,3329.6,3.00434913]
[1768383012702,1.80134465,3330.1,3329.6,3.64642897]
[1768383012905,1.80134465,3330.1,3329.6,3.00434913]
[1768383016729,1.80134465,3330.1,3329.6,0.001]
[1768383019598,1.73728666,3330.0,3329.6,0.001]
[1768383020948,1.73728666,3329.9,3329.6,0.001]
[1768383021527,1.82909295,3329.7,3329.0,0.001]
[1768383021698,1.73728666,3329.5,3329.0,0.001]
[1768383022418,1.73728666,3329.4,3329.0,0.001]
[1768383024328,4.74086638,3329.4,3329.0,0.001]
[1768383024509,1.73728666,3329.3,3329.0,0.001]
[1768383026611,1.73728666,3329.2,3329.0,0.001]
[1768383026816,2.51174853,3329.1,3329.0,0.001]
[1768383027335,1.73728666,3329.1,3329.0,0.001]
[1768383028251,1.73728666,3329.3,3329.0,0.001]
[1768383028404,1.73728666,3329.3,3329.0,0.03103905]
[1768383028603,1.73728666,3329.3,3329.0,0.001]
[1768383030352,1.73728666,3329.8,3329.0,0.001]
[1768383030518,1.73728666,3329.7,3329.0,0.001]
[1768383030839,4.74065042,3329.6,3329.0,0.001]
[1768383031349,4.74065042,3329.6,3329.1,0.03003814]
[1768383032414,4.74065042,3329.6,3329.0,0.03103905]
[1768383032617,0.50480629,3329.9,3329.0,1.79368647]
[1768383032618,1.82909295,3329.9,3329.0,1.79368647]
[1768383032929,3.00491598,3330.1,3329.5,1.76264742]
[1768383033135,0.002,3330.1,3329.5,1.76264742]
[1768383036857,0.002,3330.1,3329.7,1.64954975]
[1768383037342,0.002,3329.8,3329.7,1.64954975]
[1768383037546,0.002,3330.1,3329.7,2.7639279]
[1768383040218,0.002,3330.1,3329.7,1.11437815]
[1768383041150,0.002,3330.1,3329.7,4.11764957]
[1768383046455,0.002,3330.4,3329.8,8.17044952]
[1768383046677,0.002,3330.4,3330.0,3.003003]
[1768383049845,0.002,3330.1,3330.0,3.003003]
[1768383050046,0.002,3330.4,3330.0,3.003003]
[1768383052329,0.002,3330.4,3330.0,6.006006]
[1768383052973,3.50713319,3330.8,3330.2,1.64954975]
[1768383052974,0.413,3330.8,3330.2,1.64954975]
[1768383053192,0.413,3330.8,3330.3,0.81404177]
[1768383053977,0.413,3330.8,3330.3,3.81675874]
[1768383057681,0.413,3330.8,3330.3,3.84678606]
[1768383057880,0.413,3330.8,3330.3,3.81675874]
[1768383058381,0.413,3330.8,3330.3,3.00271697]
[1768383058577,0.413,3330.8,3330.3,3.03274429]
[1768383058792,0.413,3330.8,3330.3,3.00271697]
[1768383059974,0.413,3330.8,3330.3,4.65226672]
[1768383060881,0.413,3330.8,3330.4,1.64954975]
[1768383061183,0.413,3330.8,3330.5,1.64954975]
[1768383061550,0.413,3330.8,3330.5,1.65054975]
[1768383063484,3.00194894,3331.2,3330.6,1.64954975]
[1768383065593,1.48662144,3331.8,3331.0,1.53972724]
[1768383065790,0.002,3331.8,3331.2,6.49086794]
[1768383065987,0.002,3331.8,3331.1,1.53972724]
[1768383065988,3.00338263,3331.8,3331.1,1.53972724]
[1768383066467,0.002,3331.8,3331.1,1.53972724]
[1768383066668,3.00339165,3331.8,3331.1,1.53972724]
[1768383066857,3.00339165,3331.8,3331.2,1.53972724]
[1768383067796,0.002,3331.8,3331.2,1.53972724]
[1768383068565,0.002,3331.8,3331.2,4.54163285]
[1768383068765,0.002,3331.8,3331.2,1.53972724]
[1768383068962,1.57642773,3331.5,3330.7,3.4676618]
[1768383069161,1.57642773,3331.5,3330.8,0.5007389]
[1768383069162,0.09180629,3331.3,3330.8,0.5007389]
[1768383069366,0.09180629,3331.3,3330.7,4.54202651]
[1768383070193,1.57642773,3331.3,3330.7,3.00229927]
[1768383070390,0.09180629,3331.3,3330.7,4.54202651]
[1768383070764,3.09349506,3331.5,3330.8,1.53972724]
[1768383071796,3.09349506,3331.5,3330.8,4.54195518]
[1768383073392,3.09349506,3331.5,3330.8,1.53972724]
[1768383073393,7.57980527,3331.5,3330.8,1.53972724]
[1768383073602,0.41161793,3331.4,3330.7,3.00234519]
[1768383073897,4.57825884,3331.3,3331.1,0.001]
[1768383074307,1.57642773,3331.3,3331.1,0.001]
[1768383076801,4.57825933,3331.3,3331.1,0.001]
[1768383078198,0.09180629,3330.7,3329.7,1.53972724]
[1768383078393,0.09180629,3330.7,3329.5,6.49086794]
[1768383078394,0.09180629,3330.7,3330.1,1.53972724]
[1768383078593,1.48462144,3330.9,3330.1,4.54257474]
[1768383079225,1.48462144,3330.9,3330.2,3.00281857]
[1768383079601,1.56291057,3331.1,3330.2,3.00281857]
[1768383080002,1.56291057,3331.1,3330.3,1.43477623]
[1768383080313,6.00420294,3331.0,3330.3,1.43477623]
[1768383081933,6.00420294,3331.0,3330.3,1.46480355]
[1768383082105,6.00420294,3331.0,3330.3,1.43477623]
[1768383085840,0.002,3330.7,3330.3,1.43477623]
[1768383088442,0.002,3330.7,3330.0,3.41597345]
[1768383088643,0.002,3330.7,3330.0,4.21676124]
[1768383088847,0.002,3330.7,3330.0,5.65153747]
[1768383089626,0.002,3330.7,3330.1,4.43766276]
[1768383090344,0.002,3330.7,3330.2,1.43477623]
[1768383092157,0.002,3330.7,3330.0,4.85077922]
[1768383092352,0.002,3330.7,3330.1,1.43477623]
[1768383092640,0.002,3330.7,3330.0,5.35125441]
[1768383092948,0.002,3330.7,3330.1,1.43477623]
[1768383098553,0.002,3330.7,3330.0,3.91643532]
[1768383098554,0.002,3330.7,3330.4,0.001]
[1768383107406,0.002,3330.7,3330.4,1.37908672]
[1768383108193,0.002,3330.7,3330.4,0.001]
[1768383110430,0.61182921,3330.7,3330.4,0.001]
[1768383110628,0.26626037,3330.6,3330.4,0.001]
[1768383110830,0.61182921,3330.7,3330.4,0.001]
[1768383111134,0.26626037,3330.6,3330.4,0.001]
[1768383111298,3.26881253,3330.5,3330.4,0.001]
[1768383112405,3.95712282,3330.5,3329.8,1.37808672]
[1768383112730,6.69341461,3330.5,3329.8,1.37808672]
[1768383115306,8.08138793,3330.5,3329.7,0.413]
[1768383115740,0.26605734,3330.4,3329.7,1.79108672]
[1768383116040,8.49438793,3330.5,3329.7,1.79108672]
[1768383116240,0.26605734,3330.4,3329.8,1.37808672]
[1768383116405,8.49438793,3330.5,3329.8,1.37808672]
[1768383116606,0.26601401,3330.4,3329.8,1.37808672]
[1768383116802,8.49438793,3330.5,3329.8,1.37808672]
[1768383116803,7.80607764,3330.5,3329.8,1.37808672]
[1768383117005,0.26601401,3330.4,3329.8,1.37808672]
[1768383117239,7.80607764,3330.5,3329.8,1.37808672]
[1768383117430,3.2686992,3330.4,3329.8,1.37808672]
[1768383117741,3.00271883,3330.4,3329.8,1.37808672]
[1768383120448,3.41559748,3330.5,3329.9,1.37808672]
[1768383120809,1.38797332,3330.4,3329.7,3.00327119]
[1768383121026,1.38797332,3330.4,3329.8,0.34162712]
[1768383121429,3.41559748,3330.5,3329.9,1.37808672]
[1768383122145,3.41559748,3330.5,3330.2,0.001]
[1768383122522,0.002,3330.4,3330.2,0.001]
[1768383128352,0.002,3330.7,3330.4,1.16717893]
[1768383129220,0.002,3331.0,3330.6,1.16717893]
[1768383130034,0.002,3331.0,3330.4,4.58281806]
[1768383130353,0.002,3331.0,3330.5,0.45828181]
[1768383130850,0.002,3331.0,3330.5,1.62546074]
[1768383131353,0.002,3331.0,3330.6,1.16717893]
[1768383132370,0.002,3331.0,3330.8,1.16717893]
[1768383133373,3.00176181,3331.4,3330.7,3.00237187]
[1768383133571,3.00176181,3331.4,3330.8,1.16717893]
[1768383133886,6.00352362,3331.4,3330.8,1.16717893]
[1768383134378,3.00176181,3331.4,3330.8,1.16717893]
[1768383134967,0.002,3331.0,3330.8,1.16717893]
[1768383135272,0.002,3331.0,3330.6,3.00242515]
[1768383135477,1.17901782,3331.0,3330.6,3.80677584]
[1768383136082,1.17901782,3331.0,3330.7,3.00237125]
[1768383136265,1.17901782,3331.0,3330.6,0.80435069]
[1768383136591,1.17901782,3331.0,3330.6,3.00241134]
[1768383137151,1.17901782,3331.0,3330.5,3.46080525]
[1768383137491,1.17901782,3331.0,3330.6,3.00241898]
[1768383138044,0.002,3331.0,3330.6,3.00241898]
[1768383138474,0.002,3331.0,3330.5,3.46079313]
[1768383140707,0.002,3331.0,3330.5,4.614513]
[1768383141004,0.002,3331.0,3330.6,1.65647117]
[1768383142063,0.002,3331.0,3330.7,1.15371987]
[1768383143396,0.002,3331.0,3330.7,4.15604141]
[1768383144101,0.002,3331.0,3330.7,1.15371987]
[1768383146899,1.20645147,3331.0,3330.2,0.001]
[1768383147207,1.36639662,3330.9,3330.2,0.001]
[1768383147500,0.16194515,3330.9,3330.2,1.15471987]
[1768383147705,0.09380629,3331.0,3330.3,4.15638836]
[1768383147908,0.09380629,3331.0,3330.4,3.00263811]
[1768383148076,1.29825776,3331.0,3330.4,3.00263811]
[1768383148276,1.29825776,3331.0,3330.3,3.00270059]
[1768383148984,3.00219159,3330.9,3330.2,3.00382044]
[1768383149183,3.00219159,3330.9,3330.2,4.15754031]
[1768383149406,4.3003983,3331.0,3330.2,7.16036296]
[1768383150405,4.3003983,3331.0,3330.2,4.15754031]
[1768383151206,3.09594683,3331.0,3330.6,0.001]
[1768383151406,0.7715412,3330.9,3330.6,0.001]
[1768383152113,1.97599267,3330.9,3330.6,0.001]
[1768383152292,1.20445147,3330.8,3330.6,0.001]
[1768383154105,3.77378581,3330.9,3330.6,0.001]
[1768383154909,3.00410698,3331.0,3330.6,0.001]
[1768383156000,0.002,3331.0,3330.6,1.0876192]
[1768383159690,0.002,3331.0,3330.6,4.09006216]
[1768383159887,0.002,3331.0,3330.6,1.0876192]
[1768383160923,0.002,3331.0,3330.6,4.090052]
[1768383161103,0.002,3331.0,3330.7,1.0866192]
[1768383161425,0.002,3331.0,3330.2,0.414]
[1768383161426,1.1871481,3331.0,3330.2,0.001]
[1768383161717,7.67461357,3330.5,3329.7,4.08986769]
[1768383161929,4.27952357,3330.5,3329.7,4.08986769]
[1768383162133,4.70747593,3330.5,3329.7,4.08986769]
[1768383162633,4.18779042,3330.4,3329.7,4.08986769]
[1768383166007,4.18779042,3330.4,3330.0,0.001]
[1768383171726,1.1851481,3330.2,3330.0,0.001]
[1768383173867,4.18797628,3330.2,3330.0,0.001]
[1768383174162,1.1851481,3330.1,3330.0,0.001]
[1768383174369,3.00282818,3330.2,3330.0,0.001]
[1768383176374,3.00264232,3330.4,3330.0,0.001]
[1768383176568,6.46687777,3330.4,3330.0,0.001]
[1768383178253,3.00249581,3330.6,3330.0,1.0876192]
[1768383178593,3.00228173,3330.8,3330.1,1.0866192]
[1768383180477,0.002,3330.4,3330.2,4.08944185]
[1768383180689,0.413,3330.9,3330.4,1.0866192]
[1768383180845,0.002,3331.0,3330.4,1.0866192]
[1768383180846,3.00416598,3331.0,3330.4,1.0866192]
[1768383181040,6.00633196,3331.0,3330.4,1.0866192]
[1768383181250,3.00416598,3331.0,3330.4,1.0866192]
[1768383181672,0.03002567,3330.9,3330.3,1.0866192]
[1768383183667,3.03228441,3330.9,3330.3,1.0866192]
[1768383184607,3.03228441,3330.9,3330.3,4.08935123]
[1768383185285,3.03228441,3330.9,3330.3,1.0866192]
[1768383185908,3.03228441,3330.9,3330.3,4.08934708]
[1768383186271,3.03228441,3330.9,3330.3,1.0866192]
[1768383189809,3.82665273,3330.9,3330.3,1.0866192]
[1768383190107,7.90896236,3330.9,3330.1,3.00287029]
[1768383190313,7.87893669,3330.9,3330.1,3.00287029]
[1768383190678,7.87893669,3330.9,3330.1,4.1614281]
[1768383191802,4.87667795,3330.9,3330.2,3.00280786]
[1768383192021,3.00412278,3331.0,3330.3,1.15855781]
[1768383192320,0.002,3330.6,3330.3,1.15855781]
[1768383192499,0.002,3331.0,3330.6,1.15855781]
[1768383192703,0.002,3330.9,3330.6,1.15855781]
[1768383194425,0.002,3330.9,3330.7,3.00237187]
[1768383194630,0.002,3330.9,3330.7,3.71871767]
[1768383194792,0.002,3330.9,3330.7,4.87727548]
[1768383194993,0.002,3331.0,3330.7,3.71871767]
[1768383198824,0.002,3331.0,3330.7,0.7163458]
[1768383199024,0.002,3331.0,3330.6,3.00246136]
[1768383199610,0.002,3331.0,3330.1,1.11102651]
[1768383199808,1.10937699,3331.0,3330.4,3.00257643]
[1768383200232,1.10937699,3331.0,3330.5,3.0025386]
[1768383200633,0.002,3331.0,3330.5,3.0025386]
[1768383200832,0.002,3331.0,3329.9,9.49251346]
[1768383200833,1.10737699,3330.5,3329.7,1.11102651]
[1768383201035,0.86067117,3330.4,3329.4,0.413]
[1768383201209,1.96804816,3330.4,3329.5,0.97593686]
[1768383201410,1.19918328,3330.4,3329.5,3.97938362]
[1768383202609,1.10737699,3330.4,3329.5,3.97938362]
[1768383203044,4.11010947,3330.3,3329.6,3.00334729]
[1768383209163,4.11010947,3330.3,3329.5,3.97935313]
[1768383214060,4.11010947,3330.3,3329.5,6.9828071]
[1768383214249,4.11010947,3330.3,3329.5,8.37143436]
[1768383214453,1.10737699,3330.2,3329.5,7.3954975]
[1768383214672,1.10737699,3330.2,3329.5,4.39204353]
[1768383215774,1.10737699,3330.2,3329.5,7.3954975]
[1768383216260,1.10737699,3330.2,3329.5,8.49478241]
[1768383216460,4.11020633,3330.2,3329.5,8.49478241]
[1768383216656,1.10737699,3330.2,3329.5,8.49478241]
[1768383218195,1.10737699,3330.2,3329.5,7.3954975]
[1768383218986,1.18600584,3330.1,3329.5,7.3954975]
[1768383220396,1.18600584,3330.1,3329.5,4.39204353]
[1768383220574,1.18600584,3330.1,3329.5,7.3954975]
[1768383222378,1.18600584,3330.1,3329.5,4.39204353]
[1768383222721,1.18600584,3330.6,3329.7,1.16341869]
[1768383222938,1.18600584,3330.6,3329.8,0.413]
[1768383223081,0.413,3331.1,3329.9,1.21441489]
[1768383223422,1.18600584,3330.9,3330.0,1.24444492]
[1768383224217,1.18800584,3331.0,3330.0,1.24444492]
[1768383224901,1.18800584,3331.0,3330.1,7.22024053]
[1768383225221,1.18800584,3331.0,3330.2,2.35244195]
[1768383225395,4.19010805,3331.0,3330.2,2.35244195]
[1768383225921,1.18800584,3331.0,3330.2,2.35244195]
[1768383226418,1.18800584,3331.0,3330.2,1.13802706]
[1768383227726,1.18800584,3331.0,3330.3,3.00273248]
[1768383228024,1.18800584,3331.0,3330.4,0.71435368]
[1768383229023,0.002,3331.5,3330.7,1.21441489]
[1768383229328,0.002,3331.5,3330.7,1.62741489]
[1768383229899,0.002,3331.5,3330.8,6.00456346]
[1768383230134,0.002,3331.5,3330.8,7.21897835]
[1768383230434,0.002,3331.5,3331.0,1.21441489]
[1768383230789,1.18592134,3331.8,3331.0,1.21441489]
[1768383231142,1.18592134,3331.8,3330.8,1.21441489]
[1768383231322,1.18592134,3331.8,3330.9,0.413]
[1768383231640,1.18600584,3331.7,3330.7,1.12394063]
[1768383231813,1.36770302,3331.7,3330.7,1.12394063]
[1768383232010,1.36770302,3331.7,3330.7,0.22378311]
[1768383232399,1.36770302,3331.7,3330.7,0.413]
[1768383232792,1.36770302,3331.7,3330.4,0.413]
[1768383233038,1.18600584,3331.7,3330.4,0.413]
[1768383233223,1.18600584,3331.7,3330.3,0.413]
[1768383233445,1.18600584,3331.7,3330.4,0.00650122]
[1768383233647,1.18600584,3331.7,3330.2,5.93658828]
[1768383234031,1.18600584,3331.7,3330.2,5.03643076]
[1768383234233,1.18600584,3331.7,3330.3,0.50364308]
[1768383234430,1.18600584,3331.7,3330.3,0.00642656]
[1768383234650,1.18600584,3331.7,3330.3,6.4914021]
[1768383234836,1.18600584,3331.7,3330.3,5.59124458]
[1768383235217,1.18600584,3331.7,3330.3,4.69108706]
[1768383235630,1.18600584,3331.7,3330.3,3.79092954]
[1768383235917,1.18600584,3331.7,3330.3,3.31751771]
[1768383236118,1.18600584,3331.7,3330.1,0.413]
[1768383236430,1.18600584,3331.7,3330.2,0.0135246]
[1768383236630,1.18600584,3331.7,3330.4,0.0135246]
[1768383236931,1.18600584,3331.7,3330.3,5.60476918]
[1768383237128,1.18600584,3331.7,3330.1,0.413]
[1768383237559,1.18600584,3331.7,3329.6,6.58320839]
[1768383237861,1.18600584,3331.7,3329.7,0.413]
[1768383238047,1.18600584,3331.7,3329.8,0.413]
[1768383238565,1.18600584,3331.7,3329.9,0.02329514]
[1768383238735,1.36845218,3331.7,3329.8,0.413]
[1768383238920,1.36845218,3331.7,3329.6,6.02753972]
[1768383239119,1.36845218,3331.7,3329.8,0.413]
[1768383239460,1.36845218,3331.7,3329.9,0.02329514]
[1768383239747,1.18600584,3331.6,3330.1,0.04638834]
[1768383239915,1.18600584,3331.6,3330.2,0.30568251]
[1768383240750,1.18600584,3331.6,3330.3,9.00819744]
[1768383240966,1.18600584,3331.3,3330.3,9.00819744]
[1768383241139,0.413,3331.2,3330.3,9.00819744]
[1768383241551,0.413,3331.2,3330.4,1.21441489]
[1768383241552,1.59900584,3331.2,3330.4,1.21441489]
[1768383241751,1.59900584,3331.2,3330.5,1.02226123]
[1768383242464,0.413,3331.2,3330.6,6.00492402]
[1768383243465,0.413,3331.2,3330.5,3.00254719]
[1768383243627,0.413,3331.2,3330.5,6.00509935]
[1768383243628,0.91696456,3331.1,3330.5,6.00509935]
[1768383244255,0.91696456,3331.1,3330.4,6.00528464]
[1768383246039,0.413,3331.2,3330.5,1.40329336]
[1768383246239,0.413,3331.2,3330.6,6.00492402]
[1768383247116,0.413,3331.2,3330.6,7.40821738]
[1768383248382,0.413,3331.2,3330.7,1.40329336]
[1768383248582,0.413,3331.2,3330.8,1.40329336]
[1768383249674,1.16454722,3331.1,3330.7,0.74082174]
[1768383249876,0.413,3331.2,3330.8,3.00228173]
[1768383252983,1.30406255,3331.1,3330.8,3.00228173]
[1768383255082,0.413,3331.2,3330.8,3.00228173]